Cogmind - Beta 11.1 @@@ ROGUE MODE // 2022.05.07 @ 22:02:21 Player: eldritch Result: Self-destructed Performance ------------- Evolutions (1) 500 Regions Visited (2) 400 Robots Destroyed (14) 70 Value Destroyed (477) 477 Prototype IDs (2) 40 Alien Tech Used (0) 0 Bonus (200) 200 TOTAL SCORE: 1687 Bonus ------- Pacifist 200 Cogmind --------- Core Integrity 348/400 Matter 271/300 Energy 116/125 System Corruption 5% Temperature Cool (42) Movement Walking (120) Location -9/Materials Parts ------- > --- POWER (1) -------- Light Ion Engine > --- PROPULSION (3) --- Aluminum Leg Aluminum Leg Improved Aluminum Leg > --- UTILITY (3) ------ Large Storage Unit Weight Redist. System Medium Armor Plating > --- WEAPON (2) ------- Heavy EM Pulse Gun Assault Rifle > --- INVENTORY (15) --- Ion Engine Light Treads Light Treads Improved Treads Aluminum Leg Aluminum Leg Small Matter Pod (50) Weight Redist. System Shield Generator Heavy EM Pulse Gun Small Laser Assault Rifle Datajack Plasma Cutter Katana Peak State ------------ > --- POWER ------------ Ion Engine > --- PROPULSION ------- Aluminum Leg Aluminum Leg Improved Aluminum Leg > --- UTILITY ---------- Large Storage Unit Weight Redist. System Medium Armor Plating > --- WEAPON ----------- Heavy EM Pulse Gun Assault Rifle > --- INVENTORY -------- Ion Engine Light Treads Light Treads Improved Treads Aluminum Leg Aluminum Leg Small Matter Pod Weight Redist. System Medium Armor Plating Shield Generator Small Laser Assault Rifle Datajack Plasma Cutter Katana [Rating: 15] Favorites ----------- Power Light Ion Engine Engine Light Ion Engine Propulsion Aluminum Leg Leg Aluminum Leg Utility Large Storage Unit Device Weight Redist. System Storage Large Storage Unit Protection Medium Armor Plating Weapon Assault Rifle Energy Gun Heavy EM Pulse Gun Ballistic Gun Assault Rifle Build | -11 -10 -9 ------- Run | Scr Mat Mat Slots Evolved 2 | . . 2 Power . | . . . Propulsion 1 | . . 1 Utility 1 | . . 1 Weapon . | . . . Parts Attached 13 | . 1 12 Power 2 | . . 2 Engine 2 | . . 2 Core . | . . . Reactor . | . . . Propulsion 4 | . . 4 Treads . | . . . Leg 4 | . . 4 Wheel . | . . . Hover . | . . . Flight . | . . . Utility 5 | . 1 4 Device 1 | . . 1 Storage 2 | . 1 1 Processor . | . . . Hackware . | . . . Protection 2 | . . 2 Artifact . | . . . Weapon 2 | . . 2 Energy Gun 2 | . . 2 Energy Cannon . | . . . Ballistic Gun . | . . . Ballistic Cannon . | . . . Launcher . | . . . Special Weapon . | . . . Impact Weapon . | . . . Slashing Weapon . | . . . Piercing Weapon . | . . . Special Melee Weapon . | . . . Unidentified Prototypes . | . . . Corrupted Parts 1 | . . 1 System Corruption 5 | . . 5 Parts Lost 1 | . . 1 Power . | . . . Propulsion . | . . . Utility 1 | . . 1 Weapon . | . . . Highest Loss Streak 1 | . . 1 To Critical Strikes . | . . . Average Slot Usage (%) 93 | . 85 96 Engine 11 | . 14 11 Leg 31 | . 28 33 Device 6 | . . 8 Storage 11 | . 14 11 Protection 7 | . . 10 Energy Gun 3 | . . 5 Ballistic Gun 19 | . 28 16 Naked Turns . | . . . Heaviest Build 37 | 11 21 37 Greatest Support 39 | 20 20 39 Greatest Overweight (x) 1 | . 1 1 Average Overweight (x) . | . . . Largest Inventory Capacity 15 | . 10 15 Average Capacity 13 | . 8 14 Most Carried 15 | . 9 15 Average Carried 11 | . 7 13 Final Capacity 15 | 8 10 15 Final Carried 15 | 6 9 15 Class Distribution -------------------- 100% | Mutant Dominant Class ---------------- Mutant | -10/Materials Mutant | -9/Materials Resources | -11 -10 -9 ----------- Run | Scr Mat Mat Matter Collected 515 | 200 . 315 Remotely . | . . . Salvage Created 697 | . . 697 Parts 43 | . . 43 Haulers Intercepted 1 | . . 1 Recyclers Shooed . | . . . Parts Field Recycled . | . . . Retrieved Matter . | . . . Parts Self-Destructed . | . . . Prevented . | . . . Kills | -11 -10 -9 ------- Run | Scr Mat Mat Combat Hostiles Destroyed 12 | . . 12 Guns 12 | . . 12 Classes Destroyed 5 | . . 5 Hauler 1 | . . 1 Recycler 1 | . . 1 Grunt 9 | . . 9 Duelist 1 | . . 1 Sentry 2 | . . 2 Best Kill Streak 5 | . . 5 Combat Bots Only 5 | . . 5 Max Kills in Single Turn 1 | . . 1 Gunslinging . | . . . Exploded . | . . . Melee . | . . . Uniques/NPCs Destroyed . | . . . Combat | -11 -10 -9 -------- Run | Scr Mat Mat Damage Taken 729 | . 24 705 Core 76 | . 24 52 Absorbed by Shields . | . . . Core Remaining (%) 95 | 100 90 . Volleys Fired 46 | . 1 45 Largest 2 | . 2 2 Hottest 65 | . 40 65 Shots Fired 91 | . 2 89 Gun 91 | . 2 89 Cannon . | . . . Launcher . | . . . Special . | . . . Kinetic 64 | . 2 62 Thermal . | . . . Explosive . | . . . Electromagnetic 27 | . . 27 Robot Hit Streak 18 | . 1 18 Robot Miss Streak 1 | . 1 1 Penetration Max . | . . . Secondary Targets . | . . . Shots Hit Robots 71 | . 1 70 Core Hits 29 | . . 29 Critical Kills . | . . . Critical Parts Destroyed . | . . . Critical Strikes 2 | . . 2 Corrupt 2 | . . 2 Melee Attacks . | . . . Impact . | . . . Slashing . | . . . Piercing . | . . . Sneak Attacks . | . . . Combat Hostiles . | . . . Follow-up Attacks . | . . . Damage Inflicted 926 | . 24 902 Guns 919 | . 24 895 Cannons . | . . . Explosions . | . . . Melee . | . . . Ramming 7 | . . 7 Kinetic 554 | . 24 530 Thermal . | . . . Explosive . | . . . Electromagnetic 365 | . . 365 Impact . | . . . Slashing . | . . . Piercing . | . . . Highest Corruption 5 | . . 5 Average Corruption 5 | . . 5 Corruption Purged . | . . . Corruption Blocked . | . . . Effects 6 | . . 6 Message Errors 1 | . . 1 Matter Fused 2 | . . 2 Heat Flow Errors 1 | . . 1 Energy Discharges 1 | . . 1 Weapon Failures 1 | . . 1 Overload Shots . | . . . Overflow Damage . | . . . Projectiles . | . . . Explosions . | . . . Melee . | . . . Knockbacks . | . . . Impact . | . . . Kinetic . | . . . Secondary . | . . . Self-Inflicted Damage . | . . . Shots . | . . . Rammed . | . . . Targets Rammed 1 | . . 1 Kicked 1 | . . 1 Crushed . | . . . Highest Temperature 256 | . . 256 Average Temperature 72 | . . 72 Received Heat Transfer 342 | . 15 327 Siege Activations . | . . . Robots Corrupted . | . . . Combat Hostiles . | . . . Parts Fried . | . . . Impact Corruptions . | . . . Robots Melted . | . . . Combat Hostiles . | . . . Parts Melted . | . . . Heat Transferred . | . . . Parts Sabotaged . | . . . Parts Stolen . | . . . Parts Stripped . | . . . Power Chain Reactions . | . . . Missiles Intercepted . | . . . Alert | -11 -10 -9 ------- Run | Scr Mat Mat Peak Influence 318 | . 30 318 Initial 12 | . . 12 Average 88 | . 16 115 Maximum Alert Level 1 | . . 1 Low Security (%) 84 | . 100 79 Level 1 15 | . . 20 Level 2 . | . . . Level 3 . | . . . Level 4 . | . . . Level 5 . | . . . High Security . | . . . Max Security . | . . . Squads Dispatched 3 | . 1 2 Investigation 1 | . 1 . Extermination . | . . . Reinforcement 2 | . . 2 Assault . | . . . Garrison . | . . . Intercept . | . . . Searches Triggered . | . . . Construction Impeded . | . . . Haulers Reinforced . | . . . Active Scanning Responses . | . . . Cargo Convoy Interrupts . | . . . Stealth | -11 -10 -9 --------- Run | Scr Mat Mat Distress Signals 6 | . . 6 Communications Jammed . | . . . Distress Signals . | . . . Times Spotted 30 | . 4 26 Peak Tracking Total 7 | . 3 7 Tactical Retreats 2 | . . 2 Traps | -11 -10 -9 ------- Run | Scr Mat Mat Traps Triggered 1 | . 1 . Indirectly . | . . . Trap Hack Attempts . | . . . Triggered . | . . . Disarmed . | . . . Reprogrammed . | . . . Reused . | . . . Traps Extracted . | . . . Installed . | . . . Triggered . | . . . Machines | -11 -10 -9 ---------- Run | Scr Mat Mat Machines Disabled . | . . . Max in Single Turn . | . . . Machines Sabotaged . | . . . Garrisons Compromised . | . . . Overloaded Fab Kills . | . . . Hacking | -11 -10 -9 --------- Run | Scr Mat Mat Machines Accessed 5 | . 2 3 Terminals 5 | . 2 3 Fabricators . | . . . Repair Stations . | . . . Recycling Units . | . . . Scanalyzers . | . . . Garrison Access . | . . . Total Hacks 14 | . 7 7 Successful 6 | . 5 1 Failed 7 | . 1 6 Catastrophic 1 | . . 1 Database Lockouts 1 | . 1 . Manual 8 | . 4 4 Terminals 14 | . 7 7 Fabricators . | . . . Repair Stations . | . . . Recycling Units . | . . . Scanalyzers . | . . . Garrison Access . | . . . Terminal Hacks 5 | . 4 1 Robot Analysis 2 | . 1 1 Prototype ID Bank 1 | . 1 . Locate Traps 1 | . 1 . Hauler Manifests 1 | . 1 . Fabricator Hacks . | . . . Repair Station Hacks . | . . . Recycling Unit Hacks . | . . . Scanalyzer . | . . . Garrison Access Hacks . | . . . Unauthorized Hacks 1 | . 1 . Terminals 1 | . 1 . Botnet 1 | . 1 . Fabricators . | . . . Repair Stations . | . . . Recycling Units . | . . . Scanalyzers . | . . . Garrison Access . | . . . Data Cores Recovered . | . . . Used . | . . . Hacking Detections 5 | . 2 3 Full Trace Events 1 | . 1 . Feedback Events . | . . . Feedback Blocked . | . . . Robot Schematics Acquired . | . . . Robots Built . | . . . Authchips . | . . . Time . | . . . Total Robot Build Rating . | . . . Part Schematics Acquired . | . . . Parts Built . | . . . Authchips . | . . . Time . | . . . Total Part Build Rating . | . . . Parts Repaired . | . . . Time . | . . . Parts Recycled . | . . . Recycled Matter . | . . . Retrieved Matter . | . . . Retrieved Components . | . . . Parts Scanalyzed . | . . . Part Schematics Acquired . | . . . Parts Damaged . | . . . Bothacking | -11 -10 -9 ------------ Run | Scr Mat Mat Used RIF Installer . | . . . Robots Hacked . | . . . Non-combat . | . . . Combat . | . . . Robot Hacks Applied . | . . . Relay Couplers Released . | . . . Fabnet Peak Effective % . | . . . Robots Rewired . | . . . Allies Hacked . | . . . Hacks Repelled . | . . . Allies | -11 -10 -9 -------- Run | Scr Mat Mat Total Allies . | . . . Largest Group . | . . . Highest-Rated Group . | . . . Highest-Rated Ally . | . . . Total Orders . | . . . Ally Attacks . | . . . Total Damage . | . . . Kills . | . . . Allies Corrupted . | . . . Allies Melted . | . . . Intel | -11 -10 -9 ------- Run | Scr Mat Mat Robot Analysis Total 2 | . 1 1 Derelict Logs Recovered . | . . . Drone Launches . | . . . Drone Recoveries . | . . . Exploration | -11 -10 -9 ------------- Run | Scr Mat Mat Turns Passed 815 | . 221 594 Spaces Moved 479 | 1 175 303 Core . | . . . Treads . | . . . Legs 479 | 1 175 303 Wheels . | . . . Hover . | . . . Flight . | . . . Fastest Speed 120 | 120 120 120 Average Speed 127 | 120 120 130 Slowest Speed 190 | 120 190 190 Overloaded Moves . | . . . Propulsion Burnouts . | . . . Robots Hopped . | . . . Cave-ins Triggered . | . . . Exploration Rate (%) 27 | 2 42 38 Regions Visited 2 Branch Regions . Pre-discovered Areas . | . . . Known Exits Taken . | . . . Unknown Exits Taken 2 | 1 1 . Scrap Searched . | . . . Spaces Dug . | . . . Terrain Destroyed . | . . . Melee . | . . . Projectile . | . . . AOE . | . . . Terrain Rammed . | . . . Walls Destroyed . | . . . Machines Disabled . | . . . Actions | -11 -10 -9 --------- Run | Scr Mat Mat Total 599 | . 184 415 Wait 37 | . . 37 Move 477 | . 174 303 Hop . | . . . Pick Up 14 | . 5 9 Fast Attach 4 | . 1 3 Attach 2 | . . 2 Detach . | . . . Swap 7 | . . 7 Drop 11 | . 3 8 Fire 46 | . 1 45 Melee . | . . . Ram . | . . . Kick 1 | . . 1 Crush . | . . . Escape Stasis . | . . . Rewire . | . . . Trap . | . . . Miscellaneous . | . . . Route ------- -11/Scrapyard -10/Materials -9/Materials History --------- Turn | Location | Event 1 | -11/Scrapyard | Discovered new exit (range 0) 1 | -11/Scrapyard | Entered Materials 28 | -10/Materials | Central database locked down 194 | -10/Materials | Discovered new exit (range 7) 222 | -10/Materials | Entered another Materials area 222 | -9/Materials | Evolved 2 slots: Propulsion x1, Utility x1 310 | -9/Materials | Build established: Mutant 816 | -9/Materials | Self-destructed Last Messages --------------- 00699_ R-06 Scavenger collects Hvy. EM Pulse Gun. 00710_ W-16 Scout sends out distress signal. 00710_ Connecting with Terminal... 00737_ System corrupted: Hvy. EM Pulse Gun failed to cycle. 00740_ Y-45 Defender destroyed. 00743_ 5UMV3JA#ED4GJDBIHRWBUAI178#DXNSW8M 00743_ R-06 Scavenger collects Corrupted Heat Sink. 00743_ R-06 Scavenger destroyed. 00748_ Acquired 22 matter. 00751_ R-06 Scavenger collects Com. Wheel. 00751_ Dropped Ion Engine. 00755_ R-06 Scavenger collects Tractor Beam. 00759_ System corrupted: Energy discharge (-27). 00761_ O-16 Technician: "IFF HANDSHAKE FAILED. SECURING TERMINAL." 00763_ ALERT: Hostiles spotted, dispatching reinforcements to Terminal M005. 00773_ W-16 Scout sends out distress signal. 00797_ Connecting with Terminal... 00801_ G-34 Mercenary destroyed. 00804_ System corrupted: Matter fused (-7). Map ----- +----------------------------------------------------+ | | | | | | | | | | | | | | | | | | | | | | | | | | | | | | | | | | | | | | | | | ???????????????########?????????????????? | | ???????????????# #?????????????????? | | ???????????????# T #?????????????????? | | ???????????????# #?????????????????? | | ?????????????### ###???????????????? | | ?????????????# /@ g ; ????????? | | ?????????????#g# Y= ###???????????????? | | ?????????????# ####+#########???????????? | | ?????????????# = #???????????? | | ?????????????# #???????????? | | ?????????????# #???????????? | | ?????????????# #???????????? | | ?????????????############## #### #??????? | | ??????????????????????????# #??????? | | ???????????????????#??????# ######??????? | | ??????????????????## ????# #???????????? | | ??????????????????? ??# #???????????? | | ???????????????????# "T" # #######T#???? | | ???????????????????# """ + | | ???????????????????# # ########????? | | ???????????????????#####??# #???????????? | | ???????????????????# ??# #???????????? | | ???????????????????# """ # #######?????? | | ???????????????????# "Y" + #?????? | | ???????????????????# " " # #?????? | | ???????????????????# ??# #?????? | | ???????????????????# ????# #?????? | | ???????????????????#??????# #?????? | | ????????????????????????### #?????? | | ????????????????????????# #?????? | +----------------------------------------------------+ Best States ------------- Heat Dissipation 28 Energy Generation 10 Energy Capacity 250 Matter Stores 300 Matter Capacity 300 Sight Range 16 Terrain Scan Density 10 Additional Mass Support 6 Armor Coverage 225 Evasion (%) 55 Item Schematics ----------------- None Robot Schematics ------------------ None Fabricated ------------ Nothing Alien Tech Used ----------------- None Achievements -------------- None Challenges ------------ None Game ------ Seed AbsorptionSmartbombInverter Manual? 0 Play Time 00:09:44 Cumulative 244.5 hours Start 2022.05.07 @ 21:54:45 End 2022.05.07 @ 22:02:21 Sessions 1 Manual Loads 0 Difficulty Rogue Special Mode None Game No. 554 Rogue 554 Adventurer 0 Explorer 0 Win Type - Total 5 Types 4/0/0/1/0/0/0/0/0 Lore% 58 Gallery% 61 Achievement% 56 Wizard Run 0 Options --------- ASCII 0 Keyboard 0 Movement Numpad Keybinds 0 Fullscreen 1 Font 16/SmallcapsGlow Map View 75x55 Tactical HUD 1 Map Filters NONE Filters NONE Steam 1 RUN: b2834089-ed8c-448b-8b66-cc867f4564e0